fUSD/lending_fUSD_20260409
["ID","MTS","AMOUNT","RATE_DAILY","PERIOD"]
[420121410,1775693448950,-9151.786713,0.00015707,2]
[420121411,1775693448960,-431.181652,0.00015707,2]
[420121412,1775693448970,-243.409842,0.00015707,2]
[420121413,1775693448980,-2067.805526,0.00015707,2]
[420121414,1775693448991,-1051.379948,0.00015707,2]
[420121415,1775693449001,-263.04162,0.00015707,2]
[420121416,1775693449011,-9151.786713,0.00015707,2]
[420121417,1775693449022,-2067.805526,0.00015707,2]
[420121418,1775693449032,-431.181652,0.00015707,2]
[420121419,1775693449043,-243.409842,0.00015707,2]
[420121420,1775693449053,-1051.379948,0.00015707,2]
[420121421,1775693449064,-263.04162,0.00015707,2]
[420121422,1775693449074,-9151.786713,0.00015707,2]
[420121423,1775693449084,-431.181652,0.00015707,2]
[420121424,1775693449095,-243.409842,0.00015707,2]
[420121425,1775693449105,-2067.805526,0.00015707,2]
[420121426,1775693449115,-263.04162,0.00015707,2]
[420121427,1775693449126,-1051.379948,0.00015707,2]
[420121428,1775693449136,-2067.805526,0.00015707,2]
[420121429,1775693449145,-431.181652,0.00015707,2]
[420121430,1775693449155,-263.04162,0.00015707,2]
[420121431,1775693449165,-1051.379948,0.00015707,2]
[420121432,1775693449175,-243.409842,0.00015707,2]
[420121433,1775693449185,-431.181652,0.00015707,2]
[420121434,1775693449195,-243.409842,0.00015707,2]
[420121435,1775693449205,-9151.786713,0.00015707,2]
[420121436,1775693449215,-9151.786713,0.00015707,2]
[420121437,1775693449225,-263.04162,0.00015707,2]
[420121438,1775693449236,-431.181652,0.00015707,2]
[420121439,1775693449247,-263.04162,0.00015707,2]
[420121440,1775693449257,-431.181652,0.00015707,2]
[420121441,1775693449267,-9151.786713,0.00015707,2]
[420121442,1775693449278,-9151.786713,0.00015707,2]
[420121443,1775693449287,-151.0,0.00015707,2]
[420121444,1775693449297,-151.0,0.00015707,2]
[420121445,1775693449307,-968.13596,0.00015707,2]
[420121446,1775693449318,-151.0,0.00015707,2]
[420121447,1775693449327,-151.0,0.00015707,2]
[420121448,1775693449337,-968.13596,0.00015707,2]
[420121449,1775693449347,-151.0,0.00015707,2]
[420121450,1775693449357,-151.0,0.00015707,2]
[420121451,1775693449367,-968.13596,0.00015707,2]
[420121452,1775693449377,-968.13596,0.00015707,2]
[420121453,1775693449387,-151.0,0.00015707,2]
[420121454,1775693449397,-151.0,0.00015707,2]
[420121455,1775693449407,-151.0,0.00015707,2]
[420121456,1775693449418,-968.13596,0.00015707,2]
[420121457,1775693449428,-151.0,0.00015707,2]
[420121458,1775693449438,-151.0,0.00015707,2]
[420121459,1775693449448,-968.13596,0.00015707,2]
[420121460,1775693449459,-151.0,0.00015707,2]
[420121461,1775693449469,-151.0,0.00015707,2]
[420121462,1775693449480,-151.0,0.00015707,2]
[420121463,1775693449491,-151.0,0.00015707,2]
[420121464,1775693449501,-968.13596,0.00015707,2]
[420121465,1775693449511,-151.0,0.00015707,2]
[420121466,1775693449522,-968.13596,0.00015707,2]
[420121467,1775693449533,-151.0,0.00015707,2]
[420121468,1775693449543,-151.0,0.00015707,2]
[420121469,1775693449552,-151.0,0.00015707,2]
[420121470,1775693449562,-151.0,0.00015707,2]
[420121471,1775693449572,-151.0,0.00015707,2]
[420121472,1775693449583,-151.0,0.00015707,2]
[420121473,1775693449731,-151.0,0.00015707,2]
[420121474,1775693449742,-151.0,0.00015707,2]
[420121475,1775693449753,-184.458313,0.00015707,2]
[420121476,1775693449762,-184.458313,0.00015707,2]
[420121477,1775693449772,-925.355215,0.00015707,2]
[420121478,1775693449782,-925.355215,0.00015707,2]
[420121479,1775693449792,-184.458313,0.00015707,2]
[420121480,1775693449801,-184.458313,0.00015707,2]
[420121481,1775693449811,-925.355215,0.00015707,2]
[420121482,1775693449821,-925.355215,0.00015707,2]
[420121483,1775693449831,-168.614972,0.00015707,2]
[420121484,1775693449839,-184.458313,0.00015707,2]
[420121485,1775693449849,-168.614972,0.00015707,2]
[420121486,1775693449859,-184.458313,0.00015707,2]
[420121487,1775693449869,-1478.280704,0.00015707,2]
[420121488,1775693449879,-925.355215,0.00015707,2]
[420121489,1775693449888,-1478.280704,0.00015707,2]
[420121490,1775693449897,-925.355215,0.00015707,2]
[420121491,1775693449907,-151.0,0.00015707,2]
[420121492,1775693449916,-184.458313,0.00015707,2]
[420121493,1775693449926,-168.614972,0.00015707,2]
[420121494,1775693449936,-151.0,0.00015707,2]
[420121495,1775693449945,-184.458313,0.00015707,2]
[420121496,1775693449954,-168.614972,0.00015707,2]
[420121497,1775693449963,-925.355215,0.00015707,2]
[420121498,1775693449973,-151.0,0.00015707,2]
[420121499,1775693449983,-1478.280704,0.00015707,2]
[420121500,1775693449992,-925.355215,0.00015707,2]
[420121501,1775693450002,-1478.280704,0.00015707,2]
[420121502,1775693450012,-151.0,0.00015707,2]
[420121503,1775693450021,-168.614972,0.00015707,2]
[420121504,1775693450030,-168.614972,0.00015707,2]
[420121505,1775693450042,-1478.280704,0.00015707,2]
[420121506,1775693450052,-151.0,0.00015707,2]
[420121507,1775693450062,-365.311457,0.00015707,2]
[420121508,1775693450071,-1478.280704,0.00015707,2]
[420121509,1775693450080,-151.0,0.00015707,2]
[420121510,1775693450090,-365.311457,0.00015707,2]
[420121511,1775693450099,-168.614972,0.00015707,2]
[420121512,1775693450108,-168.614972,0.00015707,2]
[420121513,1775693450118,-151.0,0.00015707,2]
[420121514,1775693450127,-365.311457,0.00015707,2]
[420121515,1775693450137,-151.0,0.00015707,2]
[420121516,1775693450146,-365.311457,0.00015707,2]
[420121517,1775693450156,-1478.280704,0.00015707,2]
[420121518,1775693450165,-1478.280704,0.00015707,2]
[420121519,1775693450175,-365.311457,0.00015707,2]
[420121520,1775693450185,-365.311457,0.00015707,2]
[420121521,1775693450195,-365.311457,0.00015707,2]
[420121522,1775693450204,-365.311457,0.00015707,2]
[420121523,1775693450214,-151.0,0.00015707,2]
[420121524,1775693450224,-519.958567,0.00015707,2]
[420121525,1775693450234,-488.535327,0.00015707,2]
[420121526,1775693450244,-488.535327,0.00015707,2]
[420121527,1775693450254,-151.0,0.00015707,2]
[420121528,1775693450263,-151.0,0.00015707,2]
[420121529,1775693450272,-151.0,0.00015707,2]
[420121530,1775693450282,-519.958567,0.00015707,2]
[420121531,1775693450291,-303.210101,0.00015707,2]
[420121532,1775693450301,-488.535327,0.00015707,2]
[420121533,1775693450312,-158.811697,0.00015707,2]
[420121534,1775693450322,-151.0,0.00015707,2]
[420121535,1775693450332,-488.535327,0.00015707,2]
[420121536,1775693450341,-519.958567,0.00015707,2]
[420121537,1775693450352,-303.210101,0.00015707,2]
[420121538,1775693450362,-488.535327,0.00015707,2]
[420121539,1775693450371,-151.0,0.00015707,2]
[420121540,1775693450382,-151.0,0.00015707,2]
[420121541,1775693450402,-488.535327,0.00015707,2]
[420121542,1775693450412,-663.677324,0.00015707,2]
[420121543,1775693450422,-391.508831,0.00015707,2]
[420121544,1775693450432,-519.958567,0.00015707,2]
[420121545,1775693450442,-303.210101,0.00015707,2]
[420121546,1775693450451,-488.535327,0.00015707,2]
[420121547,1775693450460,-488.535327,0.00015707,2]
[420121548,1775693450470,-391.508831,0.00015707,2]
[420121549,1775693450480,-663.677324,0.00015707,2]
[420121550,1775693450490,-303.210101,0.00015707,2]
[420121551,1775693450500,-391.508831,0.00015707,2]
[420121552,1775693450510,-240.697218,0.00015707,2]
[420121553,1775693450520,-391.508831,0.00015707,2]
[420121554,1775693450529,-151.0,0.00015707,2]
[420121555,1775693450539,-240.697218,0.00015707,2]
[420121556,1775693450549,-1733.97726,0.00015707,2]
[420121557,1775693450559,-619.2864,0.00015707,2]
[420121558,1775693450569,-663.677324,0.00015707,2]
[420121559,1775693450579,-240.697218,0.00015707,2]
[420121560,1775693450589,-619.2864,0.00015707,2]
[420121561,1775693450599,-1733.97726,0.00015707,2]
[420121562,1775693450609,-151.0,0.00015707,2]
[420121563,1775693450619,-151.0,0.00015707,2]
[420121564,1775693450629,-663.677324,0.00015707,2]
[420121565,1775693450639,-619.2864,0.00015707,2]
[420121566,1775693450649,-240.697218,0.00015707,2]
[420121567,1775693450659,-1733.97726,0.00015707,2]
[420121568,1775693450669,-151.206448,0.00015707,2]
[420121569,1775693450679,-1733.97726,0.00015707,2]
[420121570,1775693450688,-619.2864,0.00015707,2]
[420121571,1775693450699,-38559.2672794,0.00015707,2]
[420121572,1775693450709,-1634.489842,0.00015707,2]
[420121573,1775693450718,-445.176276,0.00015707,2]
[420121574,1775693450728,-1634.489842,0.00015707,2]
[420121575,1775693450738,-445.176276,0.00015707,2]
[420121576,1775693450747,-445.176276,0.00015707,2]
[420121577,1775693450757,-151.352849,0.00015707,2]
[420121578,1775693450767,-226.013717,0.00015707,2]
[420121579,1775693450776,-445.176276,0.00015707,2]
[420121580,1775693450786,-151.0,0.00015707,2]
[420121581,1775693450796,-226.013717,0.00015707,2]
[420121582,1775693450805,-1634.489842,0.00015707,2]
[420121583,1775693450815,-1634.489842,0.00015707,2]
[420121584,1775693450824,-191.0,0.00015707,2]
[420121585,1775693450834,-191.0,0.00015707,2]
[420121586,1775693450844,-226.013717,0.00015707,2]
[420121587,1775693450854,-226.013717,0.00015707,2]
[420121588,1775693450863,-151.0,0.00015707,2]
[420121589,1775693450872,-151.0,0.00015707,2]
[420121590,1775693450882,-151.0,0.00015707,2]
[420121591,1775693450891,-158.022289,0.00015707,2]
[420121592,1775693450906,-151.0,0.00015707,2]
[420121593,1775693450916,-151.0,0.00015707,2]
[420121594,1775693450925,-158.022289,0.00015707,2]
[420121595,1775693450935,-260.059783,0.00015707,2]
[420121596,1775693450944,-151.0,0.00015707,2]
[420121597,1775693450954,-151.0,0.00015707,2]
[420121598,1775693450964,-151.0,0.00015707,2]
[420121599,1775693450974,-151.0,0.00015707,2]
[420121600,1775693450983,-192.212045,0.00015707,2]
[420121601,1775693450993,-151.0,0.00015707,2]
[420121602,1775693451003,-192.212045,0.00015707,2]
[420121603,1775693451013,-192.212045,0.00015707,2]
[420121604,1775693451023,-192.212045,0.00015707,2]
[420121605,1775693451032,-151.0,0.00015707,2]
[420121606,1775693451043,-151.0,0.00015707,2]
[420121607,1775693451053,-151.0,0.00015707,2]
[420121608,1775693451063,-151.0,0.00015707,2]
[420121609,1775693451072,-151.0,0.00015708,2]
[420121610,1775693451082,-1309.1028729,0.00015708,2]
[420121611,1775693451092,-2057.58181954,0.00015708,2]
[420121612,1775693451103,-4310.90487752,0.00015708,2]
[420121613,1775693451112,-832.015461,0.00015708,7]
[420121614,1775693451123,-2243.0,0.0001571,5]
[420121615,1775693451133,-980629.36351974,0.0001571,2]
[420121616,1775693452849,-415.0,0.00014836,2]
[420121617,1775693452859,-771.95625003,0.000157,2]
[420121618,1775693452869,-151.0,0.00015707,2]
[420121619,1775693452878,-264.67949169,0.0001571,2]
[420121620,1775693452889,-418.83141207,0.0001571,2]
[420121621,1775693452901,-2628.29225682,0.0001571,2]
[420121622,1775693452912,-710.31594993,0.0001571,2]
[420121623,1775693452924,-6095.94453654,0.0001571,2]
[420121624,1775693452940,-1331.38482477,0.0001571,2]
[420121625,1775693452960,-6193.42926535,0.0001571,2]
[420121626,1775693452971,-375.18789012,0.0001571,2]
[420121627,1775693453009,-169741.90632878,0.0001571,2]
[420121628,1775693453021,-188071.69639539,0.0001571,2]
[420121629,1775693453301,-151.0,0.00013643,2]
[420121630,1775693453311,-116.81012156,0.0001571,2]
[420121631,1775693453324,-104327.26251832,0.0001571,2]
[420121632,1775693453363,-459.58986104,0.0001571,2]
[420121633,1775693453376,-504.19558956,0.0001571,2]
[420121634,1775693453389,-955.11354241,0.0001571,2]
[420121635,1775693453400,-1712.11696904,0.0001571,2]
[420121636,1775693453413,-2293.72232384,0.0001571,2]
[420121637,1775693453425,-800.6768,0.0001571,2]
[420121639,1775693866064,159.94,9.523e-05,2]
[420121650,1775694638118,-3216.5170958,0.000105,5]
[420121651,1775694638129,-453.00898369,0.000105,5]
[420121652,1775694638141,-410.03200002,0.000105,5]
[420121653,1775694638152,-640.93868497,0.000105,5]
[420121654,1775694638163,-812.50323552,0.000105,5]
[420121655,1775694638173,-250.0,0.00010536,2]
[420121656,1775694638183,-210.98089089,0.0001057,2]
[420121657,1775694638263,-423.68695568,0.0001057,2]
[420121658,1775694638275,-448.30060573,0.0001057,2]
[420121659,1775694638287,-117.0315477,0.0001057,2]
[420121660,1775694638296,-2361.38,0.00010571,2]
[420121661,1775694638305,-169.35,0.00010711,2]
[420121662,1775694638314,-250.0,0.00010727,2]
[420121663,1775694638324,-1004.2155861,0.00010899,2]
[420121664,1775694638413,-77149.7683139,0.00010899,2]
[420121665,1775694638423,-300.0,0.00010925,2]
[420121666,1775694638433,-300.0,0.00010926,2]
[420121667,1775694638443,-150.0,0.00010928,2]
[420121668,1775694638453,-150.0,0.00010928,2]
[420121669,1775694638463,-150.0,0.00010928,2]
[420121670,1775694638472,-150.0,0.00010928,2]
[420121671,1775694638482,-245.51112262,0.00010928,2]
[420121672,1775694638491,-2004.77,0.00010959,2]
[420121673,1775694638501,-150.0,0.00010959,2]
[420121674,1775694638511,-150.0,0.00010998,2]
[420121675,1775694638521,-419.0,0.00011,2]
[420121676,1775694638531,-1542.504,0.00011104,2]
[420121677,1775694638543,-42060.88375008,0.00011173,2]
[420121678,1775694638554,-46559.27135698,0.00011173,2]
[420121679,1775694638564,-151.0,0.00011197,2]
[420121680,1775694638574,-151.0,0.00011197,2]
[420121681,1775694638584,-151.0,0.00011197,2]
[420121684,1775694638594,-151.0,0.00011197,2]
[420121686,1775694638604,-151.0,0.00011197,2]
[420121688,1775694638614,-151.0,0.00011197,2]
[420121690,1775694638623,-500.0,0.00011197,2]
[420121692,1775694638633,-151.0,0.00011197,2]
[420121694,1775694638643,-500.0,0.00011197,2]
[420121696,1775694638653,-151.0,0.00011197,2]
[420121698,1775694638662,-500.0,0.00011197,2]
[420121700,1775694638672,-151.0,0.00011197,2]
[420121702,1775694638683,-500.0,0.00011197,2]
[420121703,1775694638693,-151.0,0.00011197,2]
[420121704,1775694638703,-500.0,0.00011197,2]
[420121705,1775694638713,-151.0,0.00011197,2]
[420121706,1775694638723,-500.0,0.00011197,2]
[420121707,1775694638734,-151.0,0.00011197,2]
[420121708,1775694638745,-500.0,0.00011197,2]
[420121709,1775694638754,-151.0,0.00011197,2]
[420121710,1775694638764,-151.0,0.00011197,2]
[420121711,1775694638774,-151.0,0.00011197,2]
[420121712,1775694638786,-151.0,0.00011197,2]
[420121713,1775694638797,-200.0,0.00011197,2]
[420121714,1775694638807,-500.0,0.00011197,2]
[420121715,1775694638817,-524.95027006,0.00011197,2]
[420121716,1775694638826,-733.01,0.00011197,2]
[420121717,1775694638836,-500.0,0.00011203,2]
[420121718,1775694638846,-500.0,0.00011203,2]
[420121719,1775694638856,-500.0,0.00011203,2]
[420121720,1775694638865,-500.0,0.00011203,2]
[420121721,1775694638875,-602.4929943,0.00011203,2]
[420121722,1775694638885,-500.0,0.00011203,2]
[420121723,1775694638895,-500.0,0.00011203,2]
[420121724,1775694638906,-500.0,0.00011203,2]
[420121725,1775694638915,-500.0,0.00011203,2]
[420121726,1775694638926,-500.0,0.00011203,2]
[420121727,1775694638935,-500.0,0.00011203,2]
[420121728,1775694638944,-500.0,0.00011203,2]
[420121729,1775694638954,-546.78564304,0.00011203,2]
[420121730,1775694638964,-500.0,0.00011203,2]
[420121731,1775694638974,-500.0,0.00011203,2]
[420121732,1775694638983,-500.0,0.00011203,2]
[420121733,1775694638993,-500.0,0.00011203,2]
[420121734,1775694639002,-536.98855849,0.00011203,2]
[420121735,1775694639012,-500.0,0.00011203,2]
[420121736,1775694639022,-463.48479669,0.00011203,2]
[420121737,1775694639031,-500.0,0.00011203,2]
[420121738,1775694639042,-500.0,0.00011203,2]
[420121739,1775694639051,-500.0,0.00011203,2]
[420121740,1775694639061,-500.0,0.00011203,2]
[420121741,1775694639070,-500.0,0.00011203,3]
[420121742,1775694639080,-500.0,0.00011203,4]
[420121743,1775694639090,-423492.2241,0.00011204,2]
[420121744,1775694639101,-500.0,0.00011273,2]
[420121745,1775694639111,-500.0,0.00011273,2]
[420121746,1775694639120,-500.0,0.00011273,2]
[420121747,1775694639130,-500.0,0.00011273,2]
[420121748,1775694639140,-166.18823582,0.00011273,2]
[420121749,1775694639151,-500.0,0.00011273,2]
[420121750,1775694639160,-341.21474486,0.00011273,2]
[420121751,1775694639170,-470.69802626,0.00011273,2]
[420121752,1775694639179,-829.99,0.00011281,2]
[420121753,1775694639189,-150.99,0.00011281,2]
[420121754,1775694639199,-9999.99,0.00011281,2]
[420121755,1775694639209,-299.99,0.00011281,2]
[420121756,1775694639217,-531.58090884,0.00011385,2]
[420121757,1775694639226,-733.01,0.00011471,2]
[420121758,1775694639236,-600.0,0.0001155,2]
[420121759,1775694639245,-600.0,0.0001155,2]
[420121760,1775694639255,-195.0,0.0001155,2]
[420121761,1775694639264,-195.0,0.0001155,2]
[420121762,1775694639274,-195.0,0.0001155,2]
[420121763,1775694639284,-195.0,0.0001155,2]
[420121764,1775694639294,-1399.84787165,0.0001155,2]
[420121765,1775694639303,-250.0,0.0001155,2]
[420121766,1775694639313,-330.34925995,0.0001155,2]
[420121767,1775694639322,-600.0,0.0001155,2]
[420121768,1775694639332,-600.0,0.0001155,2]
[420121769,1775694639342,-600.0,0.0001155,2]
[420121770,1775694639351,-300.0,0.0001155,2]
[420121771,1775694639361,-300.0,0.0001155,2]
[420121772,1775694639371,-300.0,0.0001155,2]
[420121773,1775694639380,-300.0,0.0001155,2]
[420121774,1775694639389,-265.76204215,0.0001155,2]
[420121775,1775694639399,-166.66,0.00011578,2]
[420121776,1775694639409,-1680.0,0.00011627,2]
[420121777,1775694639418,-42060.88375008,0.00011666,2]
[420121778,1775694639428,-46559.27135697,0.00011666,2]
[420121779,1775694639438,-200.0,0.00011745,2]
[420121780,1775694639446,-733.01,0.00011745,2]
[420121781,1775694639456,-1000.0,0.00011821,2]
[420121782,1775694639465,-1000.0,0.00011821,2]
[420121783,1775694639475,-1000.0,0.00011821,2]
[420121784,1775694639484,-1000.0,0.00011955,2]
[420121785,1775694639494,-33035.6402,0.00011955,2]
[420121786,1775694639504,-166.66,0.0001196,2]
[420121787,1775694639513,-150.0,0.00012,2]
[420121788,1775694639523,-200.0,0.00012,2]
[420121789,1775694639532,-420.0,0.00012006,2]
[420121790,1775694639542,-420.0,0.00012007,2]
[420121791,1775694639551,-733.01,0.00012019,2]
[420121792,1775694639561,-255.0,0.00012043,2]
[420121793,1775694639570,-7604.62661396,0.00012159,2]
[420121796,1775694640312,-1739.2125644,0.00012159,2]
[420121797,1775694640325,-497.813004,0.00012159,2]
[420121798,1775694640458,-3250.0,0.00012159,2]
[420121799,1775694640471,-28969.23156772,0.00012159,2]
[420121800,1775694640481,-46559.27135697,0.00012159,2]
[420121801,1775694640492,-150.0,0.00012267,2]
[420121802,1775694640503,-266.846312,0.00012268,2]
[420121803,1775694640512,-200.0,0.00012293,2]
[420121804,1775694640522,-733.01,0.00012293,2]
[420121805,1775694640533,-166.66,0.00012343,2]
[420121806,1775694640546,-1000.0,0.00012368,2]
[420121807,1775694640556,-1500.0,0.00012368,2]
[420121808,1775694640567,-1500.0,0.00012368,2]
[420121809,1775694640576,-170.32,0.00012416,2]
[420121810,1775694640585,-240.4,0.0001247,2]
[420121811,1775694640595,-733.01,0.00012567,2]
[420121812,1775694640604,-42060.88375008,0.00012652,2]
[420121813,1775694640614,-46559.27135697,0.00012652,2]
[420121814,1775694640624,-166.66,0.00012725,2]
[420121815,1775694640634,-2351.0,0.0001279,2]
[420121816,1775694640644,-200.0,0.00012841,2]
[420121817,1775694640654,-733.01,0.00012841,2]
[420121818,1775694640665,-2200.0,0.000129,4]
[420121819,1775694640674,-200.0,0.000129,4]
[420121820,1775694640684,-2000.0,0.00012916,2]
[420121821,1775694640694,-2000.0,0.00012916,2]
[420121822,1775694640704,-250.0,0.00013,2]
[420121823,1775694640713,-502.0,0.000131,2]
[420121824,1775694640723,-506.0,0.000131,2]
[420121825,1775694640732,-166.66,0.00013107,2]
[420121826,1775694640742,-733.01984954,0.00013115,2]
[420121827,1775694640751,-2004.77,0.00013122,2]
[420121828,1775694640760,-42060.88375008,0.00013145,2]
[420121829,1775694640771,-46559.27135697,0.00013145,2]
[420121830,1775694640780,-433.0,0.00013186,2]
[420121831,1775694640791,-253.0,0.00013195,2]
[420121832,1775694640801,-587.0,0.00013196,2]
[420121833,1775694640810,-173.141,0.000133,2]
[420121834,1775694640819,-200.0,0.00013389,2]
[420121835,1775694640829,-3240.0,0.00013425,2]
[420121836,1775694640838,-2500.0,0.00013464,2]
[420121837,1775694640847,-1478.68924617,0.00013464,2]
[420121838,1775694640857,-166.66,0.00013489,2]
[420121839,1775694640867,-2000.0,0.000136,2]
[420121840,1775694640876,-500.0,0.00013637,2]
[420121841,1775694640886,-500.0,0.00013637,3]
[420121842,1775694640896,-500.0,0.00013637,4]
[420121843,1775694640906,-42060.88375008,0.00013638,2]
[420121844,1775694640915,-46559.27135697,0.00013638,2]
[420121845,1775694640926,-174.77031642,0.0001369,2]
[420121846,1775694640936,-500.0,0.00013698,2]
[420121847,1775694640945,-500.0,0.00013698,2]
[420121848,1775694640955,-500.0,0.00013698,2]
[420121849,1775694640964,-500.0,0.00013698,2]
[420121850,1775694640973,-500.0,0.00013698,2]
[420121851,1775694640982,-500.0,0.00013698,2]
[420121852,1775694640992,-500.0,0.00013698,2]
[420121853,1775694641001,-500.0,0.00013698,2]
[420121854,1775694641011,-500.0,0.00013698,2]
[420121855,1775694641020,-500.0,0.00013698,2]
[420121856,1775694641030,-500.0,0.00013698,2]
[420121857,1775694641039,-500.0,0.00013698,2]
[420121858,1775694641049,-500.0,0.00013698,2]
[420121859,1775694641058,-500.0,0.00013698,2]
[420121860,1775694641068,-500.0,0.00013698,2]
[420121861,1775694641077,-500.0,0.00013698,2]
[420121862,1775694641087,-150.0,0.00013699,2]
[420121863,1775694641096,-3069.0,0.00013699,2]
[420121864,1775694641105,-150.0,0.00013699,2]
[420121865,1775694641115,-2029.06,0.00013699,2]
[420121866,1775694641125,-852.98,0.00013699,2]
[420121867,1775694641134,-459.40301097,0.00013699,2]
[420121868,1775694641143,-4626.12607363,0.00013729,2]
[420121869,1775694641153,-250.0,0.00013874,2]
[420121870,1775694641162,-500.0,0.00013936,2]
[420121871,1775694641172,-200.0,0.00013937,2]
[420121872,1775694641182,-150.0,0.00013973,2]
[420121873,1775694641191,-150.0,0.00013973,2]
[420121874,1775694641201,-200.0,0.00014,2]
[420121875,1775694641210,-502.0,0.00014004,2]
[420121876,1775694641219,-1000.0,0.00014012,2]
[420121878,1775694641229,-301.165763,0.00014046,7]
[420121880,1775694641238,-160.0,0.00014046,2]
[420121881,1775694641248,-761.650597,0.00014046,2]
[420121882,1775694641257,-1363.301194,0.00014046,2]
[420121883,1775694641267,-3292.0,0.00014069,2]
[420121884,1775694641277,-1099.20357934,0.0001413,5]
[420121885,1775694641289,-42060.88375008,0.00014131,2]
[420121886,1775694641298,-46559.27135697,0.00014131,2]
[420121887,1775694641307,-321.58,0.00014223,2]
[420121888,1775694641317,-150.0,0.00014247,2]
[420121889,1775694641327,-150.0,0.00014247,2]
[420121890,1775694641336,-1116.0,0.00014256,2]
[420121891,1775694641346,-254.323017,0.00014258,7]
[420121892,1775694641355,-348.646034,0.00014258,7]
[420121893,1775694641364,-662.26960582,0.00014269,4]
[420121894,1775694641374,-197.378196,0.00014275,7]
[420121895,1775694641385,-160.0,0.00014275,7]
[420121896,1775694641394,-1260.649323,0.00014275,7]
[420121897,1775694641403,-2361.298646,0.00014275,7]
[420121898,1775694641413,-160.0,0.00014332,2]
[420121899,1775694641422,-659.979492,0.00014332,2]
[420121900,1775694641432,-1159.958985,0.00014332,2]
[420121901,1775694641442,-786.02,0.00014333,2]
[420121902,1775694641451,-2029.06,0.00014384,2]
[420121903,1775694641461,-985.91,0.00014388,2]
[420121904,1775694641470,-162.0,0.000144,2]
[420121905,1775694641480,-321.58,0.00014432,2]
[420121906,1775694641489,-736.0,0.0001444,2]
[420121907,1775694641499,-160.0,0.00014459,2]
[420121908,1775694641508,-160.0,0.00014459,2]
[420121909,1775694641517,-237.29758345,0.00014465,2]
[420121910,1775694641526,-317.62579703,0.00014466,2]
[420121911,1775694641536,-475.76,0.00014467,2]
[420121912,1775694641546,-200.0,0.00014485,2]
[420121913,1775694641556,-823.0,0.00014502,2]
[420121914,1775694641566,-152.41,0.00014565,2]
[420121915,1775694641575,-500.0,0.00014567,2]
[420121916,1775694641585,-500.0,0.00014567,2]
[420121917,1775694641594,-500.0,0.00014567,2]
[420121918,1775694641604,-500.0,0.00014567,2]
[420121919,1775694641614,-500.0,0.00014567,2]
[420121920,1775694641624,-292.48284775,0.00014567,2]
[420121921,1775694641633,-163.86569709,0.00014567,2]
[420121922,1775694641643,-500.0,0.00014567,2]
[420121923,1775694641652,-266.72,0.00014571,2]
[420121924,1775694641661,-342.93,0.00014577,2]
[420121925,1775694641670,-199.8521,0.000146,2]
[420121926,1775694641680,-786.02,0.00014607,2]
[420121927,1775694641689,-351.0,0.00014614,4]
[420121928,1775694641698,-42060.88375008,0.00014624,2]
[420121929,1775694641708,-46559.27135697,0.00014624,2]
[420121930,1775694641718,-321.58,0.0001464,2]
[420121931,1775694641727,-985.91,0.00014662,2]
[420121932,1775694641737,-500.0,0.000147,2]
[420121933,1775694641746,-500.0,0.000147,2]
[420121934,1775694641756,-500.0,0.000147,2]
[420121935,1775694641765,-237.29758343,0.00014704,2]